fUSD/lending_fUSD_20260601
["ID","MTS","AMOUNT","RATE_DAILY","PERIOD"]
[423685445,1780305039000,-2215.47,0.00010027,2]
[423685456,1780305039000,-500.0,0.0001041,2]
[423685457,1780305039000,-500.0,0.0001041,2]
[423685459,1780305039000,-500.0,0.0001041,2]
[423685444,1780305039000,-343.87970967,0.0001,2]
[423685462,1780305039000,-500.0,0.0001041,2]
[423685465,1780305039000,-446.0,0.0001041,2]
[423685455,1780305039000,-500.0,0.0001041,2]
[423685464,1780305039000,-500.0,0.0001041,2]
[423685461,1780305039000,-446.0,0.0001041,2]
[423685463,1780305039000,-500.0,0.0001041,2]
[423685467,1780305039000,-500.0,0.0001041,2]
[423685466,1780305039000,-500.0,0.0001041,2]
[423685469,1780305039000,-446.0,0.0001041,2]
[423685473,1780305039000,-446.0,0.0001041,2]
[423685471,1780305039000,-500.0,0.0001041,2]
[423685470,1780305039000,-500.0,0.0001041,2]
[423685468,1780305039000,-500.0,0.0001041,2]
[423685458,1780305039000,-500.0,0.0001041,2]
[423685448,1780305039000,-4187.12084084,0.0001031,2]
[423685433,1780305039000,-500.0,9.643e-05,2]
[423685451,1780305039000,-500.0,0.0001041,2]
[423685472,1780305039000,-245.69706371,0.0001041,2]
[423685421,1780305039000,-150.0,9.183e-05,2]
[423685424,1780305039000,-150.0,9.365e-05,2]
[423685420,1780305039000,-209.21103511,9.172e-05,2]
[423685423,1780305039000,-166.45,9.289e-05,2]
[423685419,1780305039000,-172.40863627,9.096e-05,2]
[423685422,1780305039000,-150.0,9.274e-05,2]
[423685425,1780305039000,-500.0,9.369e-05,2]
[423685426,1780305039000,-2000.0,9.395e-05,2]
[423685428,1780305039000,-154.47,9.499e-05,2]
[423685427,1780305039000,-150.0,9.456e-05,2]
[423685429,1780305039000,-166.67,9.504e-05,2]
[423685430,1780305039000,-150.0,9.547e-05,2]
[423685431,1780305039000,-166.66,9.58e-05,2]
[423685432,1780305039000,-150.0,9.638e-05,2]
[423685434,1780305039000,-9999.99,9.67e-05,2]
[423685435,1780305039000,-150.99,9.67e-05,2]
[423685438,1780305039000,-8058.75139621,9.704e-05,2]
[423685436,1780305039000,-299.99,9.67e-05,2]
[423685437,1780305039000,-461.6,9.67e-05,2]
[423685439,1780305039000,-333.06,9.79e-05,2]
[423685440,1780305039000,-166.45,9.87e-05,2]
[423685441,1780305039000,-255.0,9.893e-05,2]
[423685452,1780305039000,-500.0,0.0001041,2]
[423685442,1780305039000,-250.0,9.893e-05,2]
[423685443,1780305039000,-500.0,9.917e-05,2]
[423685476,1780305039000,-446.0,0.0001041,2]
[423685507,1780305039000,-500.0,0.0001041,2]
[423685474,1780305039000,-500.0,0.0001041,2]
[423685509,1780305039000,-202.68518386,0.0001041,2]
[423685510,1780305039000,-166.45,0.0001045,2]
[423685512,1780305039000,-2215.47,0.00010529,2]
[423685511,1780305039000,-500.0,0.00010465,2]
[423685513,1780305039000,-160.0,0.0001053,2]
[423685514,1780305039000,-2000.0,0.00010569,2]
[423685516,1780305039000,-2215.47,0.00010779,2]
[423685515,1780305039000,-500.0,0.00010739,2]
[423685517,1780305039000,-500.0,0.00010825,2]
[423685518,1780305039000,-500.0,0.00010825,2]
[423685519,1780305039000,-500.0,0.00010825,2]
[423685520,1780305039000,-500.0,0.00010825,2]
[423685521,1780305039000,-500.0,0.00010825,2]
[423685522,1780305039000,-500.0,0.00010825,2]
[423685475,1780305039000,-162.97877955,0.0001041,2]
[423685528,1780305039000,-500.0,0.00010825,2]
[423685525,1780305039000,-500.0,0.00010825,2]
[423685526,1780305039000,-500.0,0.00010825,2]
[423685524,1780305039000,-500.0,0.00010825,2]
[423685527,1780305039000,-500.0,0.00010825,2]
[423685529,1780305039000,-179.15137862,0.00010825,2]
[423685530,1780305039000,-433.0,0.00010883,2]
[423685531,1780305039000,-275.20260616,0.00010915,2]
[423685532,1780305039000,-500.0,0.00010958,2]
[423685533,1780305039000,-500.0,0.00010958,3]
[423685508,1780305039000,-500.0,0.0001041,2]
[423685506,1780305039000,-460.0,0.0001041,2]
[423685523,1780305039000,-500.0,0.00010825,2]
[423685504,1780305039000,-446.0,0.0001041,2]
[423685505,1780305039000,-446.0,0.0001041,2]
[423685477,1780305039000,-500.0,0.0001041,2]
[423685478,1780305039000,-446.0,0.0001041,2]
[423685480,1780305039000,-500.0,0.0001041,2]
[423685479,1780305039000,-500.0,0.0001041,2]
[423685482,1780305039000,-500.0,0.0001041,2]
[423685481,1780305039000,-500.0,0.0001041,2]
[423685485,1780305039000,-446.0,0.0001041,2]
[423685484,1780305039000,-500.0,0.0001041,2]
[423685489,1780305039000,-446.0,0.0001041,2]
[423685487,1780305039000,-210.60640966,0.0001041,2]
[423685486,1780305039000,-500.0,0.0001041,2]
[423685488,1780305039000,-500.0,0.0001041,2]
[423685483,1780305039000,-446.0,0.0001041,2]
[423685492,1780305039000,-446.0,0.0001041,2]
[423685490,1780305039000,-408.67132594,0.0001041,2]
[423685503,1780305039000,-446.0,0.0001041,2]
[423685502,1780305039000,-446.0,0.0001041,2]
[423685497,1780305039000,-446.0,0.0001041,2]
[423685501,1780305039000,-446.0,0.0001041,2]
[423685493,1780305039000,-446.0,0.0001041,2]
[423685495,1780305039000,-446.0,0.0001041,2]
[423685498,1780305039000,-446.0,0.0001041,2]
[423685499,1780305039000,-446.0,0.0001041,2]
[423685494,1780305039000,-446.0,0.0001041,2]
[423685491,1780305039000,-446.0,0.0001041,2]
[423685496,1780305039000,-446.0,0.0001041,2]
[423685548,1780305040000,-2215.47,0.0001103,2]
[423685542,1780305040000,-523.13674882,0.00010958,12]
[423685543,1780305040000,-4548.42,0.00010959,2]
[423685541,1780305040000,-500.0,0.00010958,11]
[423685540,1780305040000,-500.0,0.00010958,10]
[423685539,1780305040000,-500.0,0.00010958,9]
[423685534,1780305040000,-500.0,0.00010958,4]
[423685535,1780305040000,-500.0,0.00010958,5]
[423685537,1780305040000,-500.0,0.00010958,7]
[423685538,1780305040000,-500.0,0.00010958,8]
[423685546,1780305040000,-500.0,0.00011013,2]
[423685536,1780305040000,-500.0,0.00010958,6]
[423685544,1780305040000,-150.0,0.00010959,2]
[423685558,1780305040000,-78111.39343958,0.00011099,2]
[423685547,1780305040000,-333.06,0.00011014,2]
[423685560,1780305040000,-343.87970967,0.0001161,2]
[423685559,1780305040000,-384.15143428,0.00011287,2]
[423685545,1780305040000,-152.0,0.00010968,7]
[423685557,1780305040000,-78111.39343958,0.00011099,2]
[423685561,1780305040000,-57982.40524763,0.0001162,2]
[423685555,1780305040000,-78111.39343964,0.00011099,2]
[423685556,1780305040000,-78111.39343958,0.00011099,2]
[423685552,1780305040000,-67563.46638107,0.00011099,2]
[423685551,1780305040000,-67563.46638107,0.00011099,2]
[423685553,1780305040000,-67563.46638107,0.00011099,2]
[423685549,1780305040000,-166.45,0.00011031,2]
[423685550,1780305040000,-67563.46638116,0.00011099,2]
[423685554,1780305040000,-250.0,0.00011099,2]
[423685569,1780305041000,-250.0,0.00011884,2]
[423685563,1780305041000,-8515.43742818,0.0001162,2]
[423685562,1780305041000,-1065.62370526,0.0001162,2]
[423685565,1780305041000,-151.0,0.0001162,2]
[423685564,1780305041000,-78111.39343958,0.0001162,2]
[423685568,1780305041000,-2000.0,0.00011743,2]
[423685566,1780305041000,-150.0,0.00011665,2]
[423685570,1780305041000,-513.4,0.000119,2]
[423685597,1780305041000,-1806.07468153,0.00012276,2]
[423685579,1780305041000,-50916.93058169,0.00012276,2]
[423685575,1780305041000,-333.06,0.00012238,2]
[423685577,1780305041000,-67563.46638107,0.00012276,2]
[423685567,1780305041000,-8618.50640152,0.000117,2]
[423685573,1780305041000,-1.0,0.00012152,30]
[423685571,1780305041000,-736.0,0.00011971,2]
[423685572,1780305041000,-40532.18,0.00012055,2]
[423685598,1780305042000,-1389.8346784,0.00012276,2]
[423685618,1780305043000,-637.22682039,0.00012605,2]
[423685610,1780305043000,-1460.53190701,0.00012276,2]
[423685611,1780305043000,-445.05670258,0.00012276,2]
[423685612,1780305043000,-1.37552597,0.00012276,2]
[423685613,1780305043000,-22091.5893624,0.00012276,2]
[423685616,1780305043000,-4187.12084082,0.00012605,2]
[423685617,1780305043000,-474.43310014,0.00012605,2]
[423685615,1780305043000,-2130.19204081,0.00012329,2]
[423685619,1780305043000,-2130.19204081,0.00012671,2]
[423685614,1780305043000,-168.11,0.00012329,2]
[423685624,1780305043000,-78111.39343958,0.00012932,2]
[423685620,1780305043000,-1560.7,0.00012757,2]
[423685629,1780305043000,-500.0,0.00013288,2]
[423685626,1780305043000,-2010.8172016,0.00012992,2]
[423685628,1780305043000,-1252.0,0.00013167,2]
[423685627,1780305043000,-2130.19204081,0.00013014,2]
[423685630,1780305043000,-154.47,0.00013299,2]
[423685622,1780305043000,-2000.0,0.00012918,2]
[423685621,1780305043000,-1705.0,0.00012791,5]
[423685625,1780305043000,-500.0,0.00012967,2]
[423685623,1780305043000,-67563.46638107,0.00012932,2]
[423685674,1780305044000,-318.56418599,0.00013609,2]
[423685676,1780305044000,-150.0,0.00013624,2]
[423685673,1780305044000,-150.0,0.00013605,2]
[423685675,1780305044000,-150.0,0.00013624,2]
[423685670,1780305044000,-78111.39343958,0.00013588,2]
[423685677,1780305044000,-318.56418599,0.00013624,2]
[423685668,1780305044000,-150.0,0.00013581,2]
[423685665,1780305044000,-150.0,0.00013578,2]
[423685662,1780305044000,-150.0,0.00013559,2]
[423685663,1780305044000,-150.0,0.00013559,2]
[423685671,1780305044000,-318.56418599,0.00013594,2]
[423685678,1780305044000,-150.0,0.00013628,2]
[423685672,1780305044000,-150.0,0.00013595,2]
[423685686,1780305044000,-150.0,0.00013669,2]
[423685690,1780305044000,-318.56418599,0.00013684,2]
[423685680,1780305044000,-150.0,0.0001363,2]
[423685681,1780305044000,-318.56418599,0.00013639,2]
[423685679,1780305044000,-150.0,0.0001363,2]
[423685682,1780305044000,-150.0,0.00013652,2]
[423685685,1780305044000,-150.0,0.00013666,2]
[423685688,1780305044000,-318.56418599,0.00013669,2]
[423685684,1780305044000,-318.56418599,0.00013654,2]
[423685683,1780305044000,-150.0,0.00013654,2]
[423685689,1780305044000,-150.0,0.00013675,2]
[423685687,1780305044000,-150.0,0.00013669,2]
[423685691,1780305044000,-933.69403119,0.00013698,2]
[423685666,1780305044000,-150.0,0.00013578,2]
[423685669,1780305044000,-67563.46638107,0.00013588,2]
[423685661,1780305044000,-150.0,0.00013558,2]
[423685654,1780305044000,-150.0,0.00013523,2]
[423685667,1780305044000,-318.56418599,0.00013578,2]
[423685635,1780305044000,-150.0,0.00013488,2]
[423685633,1780305044000,-1679.51942951,0.00013416,2]
[423685632,1780305044000,-2130.19204081,0.00013356,2]
[423685631,1780305044000,-236.21671476,0.00013343,2]
[423685640,1780305044000,-150.0,0.00013488,2]
[423685634,1780305044000,-333.06,0.00013461,2]
[423685636,1780305044000,-150.0,0.00013488,2]
[423685638,1780305044000,-150.0,0.00013488,2]
[423685637,1780305044000,-150.0,0.00013488,2]
[423685639,1780305044000,-150.0,0.00013488,2]
[423685641,1780305044000,-150.0,0.00013488,2]
[423685653,1780305044000,-318.56418599,0.00013518,2]
[423685664,1780305044000,-318.56418599,0.00013563,2]
[423685642,1780305044000,-150.0,0.00013488,2]
[423685644,1780305044000,-150.0,0.00013488,2]
[423685647,1780305044000,-150.0,0.00013488,2]
[423685649,1780305044000,-318.56418599,0.00013503,2]
[423685650,1780305044000,-150.0,0.00013511,2]
[423685652,1780305044000,-2000.0,0.00013516,2]
[423685645,1780305044000,-318.56418599,0.00013488,2]
[423685651,1780305044000,-33234.4339,0.00013516,2]
[423685655,1780305044000,-150.0,0.00013533,2]
[423685657,1780305044000,-150.0,0.00013533,2]
[423685658,1780305044000,-318.56418599,0.00013533,2]
[423685660,1780305044000,-318.56418599,0.00013548,2]
[423685659,1780305044000,-150.0,0.00013535,2]
[423685693,1780305044000,-542.52,0.00013698,2]
[423685692,1780305044000,-631.69,0.00013698,2]
[423685698,1780305044000,-542.52,0.00013698,2]
[423685694,1780305044000,-542.52,0.00013698,2]
[423685724,1780305044000,-559.32,0.00013698,2]
[423685723,1780305044000,-559.32,0.00013698,2]
[423685727,1780305044000,-559.32,0.00013698,2]
[423685725,1780305044000,-559.32,0.00013698,2]
[423685731,1780305044000,-559.32,0.00013698,2]
[423685733,1780305044000,-559.32,0.00013698,2]
[423685732,1780305044000,-559.32,0.00013698,2]
[423685695,1780305044000,-542.52,0.00013698,2]
[423685734,1780305044000,-559.32,0.00013698,2]
[423685736,1780305044000,-559.32,0.00013698,2]
[423685743,1780305044000,-500.23762142,0.00013698,2]
[423685739,1780305044000,-559.32,0.00013698,2]
[423685744,1780305044000,-500.0,0.00013698,2]
[423685737,1780305044000,-559.32,0.00013698,2]
[423685740,1780305044000,-559.48,0.00013698,2]
[423685741,1780305044000,-500.0,0.00013698,2]
[423685738,1780305044000,-559.32,0.00013698,2]
[423685742,1780305044000,-546.65706922,0.00013698,2]
[423685746,1780305044000,-500.0,0.00013698,2]
[423685747,1780305044000,-500.0,0.00013698,2]
[423685745,1780305044000,-500.0,0.00013698,2]
[423685749,1780305044000,-500.0,0.00013698,2]
[423685748,1780305044000,-500.0,0.00013698,2]
[423685751,1780305044000,-498.43141485,0.00013698,2]
[423685752,1780305044000,-500.0,0.00013698,2]
[423685750,1780305044000,-500.0,0.00013698,2]
[423685753,1780305044000,-500.0,0.00013698,2]
[423685722,1780305044000,-559.32,0.00013698,2]
[423685728,1780305044000,-559.32,0.00013698,2]
[423685735,1780305044000,-559.32,0.00013698,2]
[423685721,1780305044000,-559.32,0.00013698,2]
[423685704,1780305044000,-542.52,0.00013698,2]
[423685700,1780305044000,-542.52,0.00013698,2]
[423685729,1780305044000,-559.32,0.00013698,2]
[423685696,1780305044000,-542.52,0.00013698,2]
[423685699,1780305044000,-542.52,0.00013698,2]
[423685701,1780305044000,-542.52,0.00013698,2]
[423685697,1780305044000,-542.52,0.00013698,2]
[423685702,1780305044000,-542.52,0.00013698,2]
[423685705,1780305044000,-542.52,0.00013698,2]
[423685707,1780305044000,-542.52,0.00013698,2]
[423685717,1780305044000,-559.32,0.00013698,2]
[423685708,1780305044000,-542.52,0.00013698,2]
[423685709,1780305044000,-542.52,0.00013698,2]
[423685703,1780305044000,-542.52,0.00013698,2]
[423685715,1780305044000,-542.52,0.00013698,2]
[423685726,1780305044000,-559.32,0.00013698,2]
[423685710,1780305044000,-542.52,0.00013698,2]
[423685720,1780305044000,-559.32,0.00013698,2]
[423685730,1780305044000,-559.32,0.00013698,2]
[423685718,1780305044000,-559.32,0.00013698,2]
[423685712,1780305044000,-542.52,0.00013698,2]
[423685719,1780305044000,-559.32,0.00013698,2]
[423685713,1780305044000,-542.52,0.00013698,2]
[423685706,1780305044000,-542.52,0.00013698,2]
[423685714,1780305044000,-542.52,0.00013698,2]
[423685716,1780305044000,-542.52,0.00013698,2]
[423685711,1780305044000,-542.52,0.00013698,2]
[423685784,1780305045000,-618.34,0.00013698,2]
[423685781,1780305045000,-618.34,0.00013698,2]
[423685785,1780305045000,-618.34,0.00013698,2]
[423685783,1780305045000,-618.34,0.00013698,2]
[423685782,1780305045000,-618.34,0.00013698,2]
[423685779,1780305045000,-618.34,0.00013698,2]
[423685786,1780305045000,-618.34,0.00013698,2]
[423685790,1780305045000,-618.34,0.00013698,2]
[423685780,1780305045000,-618.34,0.00013698,2]
[423685787,1780305045000,-618.34,0.00013698,2]
[423685794,1780305045000,-618.34,0.00013698,2]
[423685789,1780305045000,-618.34,0.00013698,2]
[423685792,1780305045000,-618.34,0.00013698,2]
[423685791,1780305045000,-618.34,0.00013698,2]
[423685802,1780305045000,-500.0,0.00013698,2]
[423685793,1780305045000,-618.34,0.00013698,2]
[423685795,1780305045000,-618.34,0.00013698,2]
[423685801,1780305045000,-500.0,0.00013698,2]
[423685796,1780305045000,-618.34,0.00013698,2]
[423685774,1780305045000,-618.34,0.00013698,2]
[423685797,1780305045000,-618.36071349,0.00013698,2]
[423685788,1780305045000,-618.34,0.00013698,2]
[423685772,1780305045000,-500.0,0.00013698,2]
[423685758,1780305045000,-500.0,0.00013698,2]
[423685773,1780305045000,-524.1016374,0.00013698,2]
[423685800,1780305045000,-500.0,0.00013698,2]
[423685755,1780305045000,-500.0,0.00013698,2]
[423685754,1780305045000,-500.0,0.00013698,2]
[423685756,1780305045000,-500.0,0.00013698,2]
[423685757,1780305045000,-500.0,0.00013698,2]
[423685766,1780305045000,-500.0,0.00013698,2]
[423685760,1780305045000,-500.0,0.00013698,2]
[423685764,1780305045000,-500.0,0.00013698,2]
[423685763,1780305045000,-500.0,0.00013698,2]
[423685759,1780305045000,-500.0,0.00013698,2]
[423685765,1780305045000,-500.0,0.00013698,2]
[423685761,1780305045000,-500.0,0.00013698,2]
[423685762,1780305045000,-500.0,0.00013698,2]
[423685768,1780305045000,-500.0,0.00013698,2]
[423685767,1780305045000,-500.0,0.00013698,2]
[423685769,1780305045000,-500.0,0.00013698,2]
[423685771,1780305045000,-500.0,0.00013698,2]
[423685770,1780305045000,-500.0,0.00013698,2]
[423685775,1780305045000,-618.34,0.00013698,2]
[423685776,1780305045000,-618.34,0.00013698,2]
[423685777,1780305045000,-618.34,0.00013698,2]
[423685778,1780305045000,-618.34,0.00013698,2]
[423685798,1780305045000,-500.0,0.00013698,2]
[423685850,1780305045000,-1189.17,0.00013698,2]
[423685804,1780305045000,-500.0,0.00013698,2]
[423685831,1780305045000,-500.0,0.00013698,2]
[423685833,1780305045000,-1189.17,0.00013698,2]
[423685832,1780305045000,-500.0,0.00013698,2]
[423685834,1780305045000,-1189.17,0.00013698,2]
[423685841,1780305045000,-1189.17,0.00013698,2]
[423685840,1780305045000,-1189.17,0.00013698,2]
[423685837,1780305045000,-1189.17,0.00013698,2]
[423685835,1780305045000,-1189.17,0.00013698,2]
[423685839,1780305045000,-1189.17,0.00013698,2]
[423685838,1780305045000,-1189.17,0.00013698,2]
[423685843,1780305045000,-1189.17,0.00013698,2]
[423685842,1780305045000,-1189.17,0.00013698,2]
[423685844,1780305045000,-1189.17,0.00013698,2]
[423685845,1780305045000,-1189.17,0.00013698,2]
[423685846,1780305045000,-1189.17,0.00013698,2]
[423685849,1780305045000,-1189.17,0.00013698,2]
[423685848,1780305045000,-1189.17,0.00013698,2]
[423685847,1780305045000,-1189.17,0.00013698,2]
[423685852,1780305045000,-1189.17,0.00013698,2]
[423685851,1780305045000,-1189.17,0.00013698,2]
[423685799,1780305045000,-500.0,0.00013698,2]
[423685821,1780305045000,-500.0,0.00013698,2]
[423685818,1780305045000,-500.0,0.00013698,2]
[423685836,1780305045000,-1189.17,0.00013698,2]
[423685825,1780305045000,-500.0,0.00013698,2]
[423685814,1780305045000,-558.87178234,0.00013698,2]
[423685826,1780305045000,-500.0,0.00013698,2]
[423685815,1780305045000,-500.0,0.00013698,2]
[423685806,1780305045000,-500.0,0.00013698,2]
[423685803,1780305045000,-500.0,0.00013698,2]
[423685805,1780305045000,-500.0,0.00013698,2]
[423685807,1780305045000,-500.0,0.00013698,2]
[423685812,1780305045000,-516.79205023,0.00013698,2]
[423685810,1780305045000,-500.0,0.00013698,2]
[423685813,1780305045000,-500.0,0.00013698,2]
[423685811,1780305045000,-500.0,0.00013698,2]
[423685808,1780305045000,-500.0,0.00013698,2]
[423685809,1780305045000,-500.0,0.00013698,2]
[423685822,1780305045000,-500.0,0.00013698,2]
[423685824,1780305045000,-500.0,0.00013698,2]
[423685819,1780305045000,-500.0,0.00013698,2]
[423685830,1780305045000,-500.0,0.00013698,2]
[423685823,1780305045000,-500.0,0.00013698,2]
[423685828,1780305045000,-500.0,0.00013698,2]
[423685816,1780305045000,-500.0,0.00013698,2]
[423685817,1780305045000,-500.0,0.00013698,2]
[423685820,1780305045000,-500.0,0.00013698,2]
[423685896,1780305046000,-500.0,0.00013698,2]
[423685883,1780305046000,-4769.99,0.00013698,2]
[423685885,1780305046000,-4769.99,0.00013698,2]
[423685882,1780305046000,-4769.99,0.00013698,2]
[423685886,1780305046000,-4769.99,0.00013698,2]
[423685880,1780305046000,-4769.99,0.00013698,2]
[423685887,1780305046000,-1950.69402426,0.00013698,2]
[423685884,1780305046000,-4769.99,0.00013698,2]
[423685888,1780305046000,-287.9431147,0.00013698,2]
[423685891,1780305046000,-4770.04390186,0.00013698,2]
[423685889,1780305046000,-469.61,0.00013698,2]
[423685903,1780305046000,-867.58,0.00013698,2]
[423685893,1780305046000,-500.0,0.00013698,2]
[423685894,1780305046000,-500.0,0.00013698,2]
[423685892,1780305046000,-500.0,0.00013698,2]
[423685897,1780305046000,-500.0,0.00013698,2]
[423685890,1780305046000,-2061.74286104,0.00013698,2]
[423685898,1780305046000,-500.0,0.00013698,2]
[423685899,1780305046000,-500.0,0.00013698,2]
[423685901,1780305046000,-867.58,0.00013698,2]
[423685904,1780305046000,-867.58,0.00013698,2]
[423685909,1780305046000,-867.58,0.00013698,2]
[423685881,1780305046000,-4769.99,0.00013698,2]
[423685895,1780305046000,-500.0,0.00013698,2]
[423685879,1780305046000,-4769.99,0.00013698,2]
[423685865,1780305046000,-4769.99,0.00013698,2]
[423685873,1780305046000,-4769.99,0.00013698,2]
[423685907,1780305046000,-867.58,0.00013698,2]
[423685853,1780305046000,-1189.17,0.00013698,2]
[423685855,1780305046000,-1189.17,0.00013698,2]
[423685856,1780305046000,-1189.17525507,0.00013698,2]
[423685854,1780305046000,-1189.17,0.00013698,2]
[423685857,1780305046000,-500.0,0.00013698,2]
[423685858,1780305046000,-500.0,0.00013698,2]
[423685861,1780305046000,-500.0,0.00013698,2]
[423685860,1780305046000,-500.0,0.00013698,2]
[423685864,1780305046000,-500.0,0.00013698,2]
[423685859,1780305046000,-500.0,0.00013698,2]
[423685878,1780305046000,-4769.99,0.00013698,2]
[423685862,1780305046000,-500.0,0.00013698,2]
[423685866,1780305046000,-4769.99,0.00013698,2]
[423685868,1780305046000,-4769.99,0.00013698,2]
[423685867,1780305046000,-4769.99,0.00013698,2]
[423685877,1780305046000,-4769.99,0.00013698,2]
[423685870,1780305046000,-4769.99,0.00013698,2]
[423685869,1780305046000,-4769.99,0.00013698,2]
[423685875,1780305046000,-4769.99,0.00013698,2]
[423685871,1780305046000,-4769.99,0.00013698,2]
[423685874,1780305046000,-4769.99,0.00013698,2]
[423685876,1780305046000,-4769.99,0.00013698,2]
[423685872,1780305046000,-4769.99,0.00013698,2]
[423685863,1780305046000,-500.0,0.00013698,2]
[423685902,1780305046000,-867.58,0.00013698,2]
[423685959,1780305046000,-500.0,0.00013698,2]
[423685906,1780305046000,-867.58,0.00013698,2]
[423685939,1780305046000,-500.0,0.00013698,2]
[423685938,1780305046000,-500.0,0.00013698,2]
[423685937,1780305046000,-500.0,0.00013698,2]
[423685943,1780305046000,-500.0,0.00013698,2]
[423685944,1780305046000,-500.0,0.00013698,2]
[423685949,1780305046000,-500.0,0.00013698,2]
[423685945,1780305046000,-500.0,0.00013698,2]
[423685946,1780305046000,-500.0,0.00013698,2]
[423685950,1780305046000,-500.0,0.00013698,2]
[423685948,1780305046000,-500.0,0.00013698,2]
[423685951,1780305046000,-500.0,0.00013698,2]
[423685952,1780305046000,-500.0,0.00013698,2]
[423685963,1780305046000,-500.0,0.00013698,2]
[423685954,1780305046000,-500.0,0.00013698,2]
[423685955,1780305046000,-500.0,0.00013698,2]
[423685958,1780305046000,-500.0,0.00013698,2]
[423685953,1780305046000,-500.0,0.00013698,2]
[423685957,1780305046000,-500.0,0.00013698,2]
[423685960,1780305046000,-597.68099601,0.00013698,2]
[423685956,1780305046000,-500.0,0.00013698,2]
[423685962,1780305046000,-500.0,0.00013698,2]
[423685961,1780305046000,-500.0,0.00013698,2]
[423685908,1780305046000,-867.58,0.00013698,2]
[423685941,1780305046000,-500.0,0.00013698,2]
[423685936,1780305046000,-500.0,0.00013698,2]
[423685947,1780305046000,-500.0,0.00013698,2]
[423685933,1780305046000,-1623.26,0.00013698,2]
[423685900,1780305046000,-867.58,0.00013698,2]
[423685928,1780305046000,-1623.26,0.00013698,2]
[423685905,1780305046000,-867.58,0.00013698,2]
[423685911,1780305046000,-837.32,0.00013698,2]
[423685910,1780305046000,-867.58,0.00013698,2]
[423685912,1780305046000,-837.32,0.00013698,2]
[423685913,1780305046000,-837.32,0.00013698,2]
[423685914,1780305046000,-837.32,0.00013698,2]
[423685918,1780305046000,-837.32,0.00013698,2]
[423685917,1780305046000,-837.32,0.00013698,2]
[423685916,1780305046000,-837.32,0.00013698,2]
[423685915,1780305046000,-837.32,0.00013698,2]
[423685921,1780305046000,-837.32,0.00013698,2]
[423685925,1780305046000,-1623.26,0.00013698,2]
[423685929,1780305046000,-1623.26,0.00013698,2]
[423685919,1780305046000,-837.32,0.00013698,2]
[423685930,1780305046000,-1623.26,0.00013698,2]
[423685926,1780305046000,-1623.26,0.00013698,2]
[423685927,1780305046000,-1623.26,0.00013698,2]
[423685931,1780305046000,-1623.26,0.00013698,2]
[423685923,1780305046000,-1623.26,0.00013698,2]
[423685924,1780305046000,-1623.26,0.00013698,2]
[423685922,1780305046000,-504.07285355,0.00013698,2]
[423685920,1780305046000,-837.32,0.00013698,2]
[423685935,1780305046000,-1623.26,0.00013698,2]
[423685995,1780305047000,-500.0,0.00013698,2]
[423686001,1780305047000,-500.0,0.00013698,2]
[423686000,1780305047000,-500.0,0.00013698,2]
[423685998,1780305047000,-500.0,0.00013698,2]